fUST/lending_fUST_20260503
["ID","MTS","AMOUNT","RATE_DAILY","PERIOD"]
[421483238,1777750242000,-500.0,0.0001387,2]
[421483232,1777750242000,-500.0,0.0001387,2]
[421483239,1777750242000,-500.0,0.0001387,2]
[421483229,1777750242000,-500.0,0.0001387,2]
[421483233,1777750242000,-500.0,0.0001387,2]
[421483236,1777750242000,-500.0,0.0001387,2]
[421483235,1777750242000,-434.51986308,0.0001387,2]
[421483237,1777750242000,-500.0,0.0001387,2]
[421483241,1777750242000,-534.75870959,0.0001387,2]
[421483234,1777750242000,-65.48013692,0.0001387,2]
[421483251,1777750242000,-218.96981741,0.00013957,2]
[421483268,1777750243000,-2117.33197332,0.00013972,2]
[421483276,1777750247000,-1443.25030795,0.00013972,2]
[421483277,1777750247000,-519.26084372,0.00013972,2]
[421483278,1777750256000,2710.75559043,7.6e-05,2]
[421483433,1777751045000,574.2,0.00021917,120]
[421483669,1777751438000,-1042.36172514,9e-05,2]
[421483668,1777751438000,-5000.0,8.644e-05,2]
[421483670,1777751438000,-1022.73827486,9e-05,2]
[421483671,1777751438000,-300.0,9.086e-05,2]
[421483672,1777751438000,-300.0,9.087e-05,2]
[421483673,1777751438000,-300.0,9.087e-05,2]
[421483674,1777751438000,-300.0,9.087e-05,2]
[421483680,1777751438000,-300.0,9.087e-05,2]
[421483679,1777751438000,-300.0,9.087e-05,2]
[421483675,1777751438000,-300.0,9.087e-05,2]
[421483678,1777751438000,-300.0,9.087e-05,2]
[421483677,1777751438000,-300.0,9.087e-05,2]
[421483676,1777751438000,-300.0,9.087e-05,2]
[421483682,1777751438000,-300.0,9.087e-05,2]
[421483693,1777751438000,-265.0,0.00013041,3]
[421483681,1777751438000,-300.0,9.087e-05,2]
[421483683,1777751438000,-300.0,9.087e-05,2]
[421483696,1777751438000,-257.12383009,0.00013669,2]
[421483697,1777751438000,-473.57376399,0.00013669,2]
[421483694,1777751438000,-160.0,0.0001319,2]
[421483695,1777751438000,-160.0,0.0001319,2]
[421483692,1777751438000,-248.32360727,0.0001282,2]
[421483690,1777751438000,-215.45724748,0.0001082,2]
[421483688,1777751438000,-163.0,9.995e-05,2]
[421483686,1777751438000,-300.0,9.087e-05,2]
[421483689,1777751438000,-503.56012524,0.0001,2]
[421483687,1777751438000,-681.0,9.589e-05,2]
[421483685,1777751438000,-300.0,9.087e-05,2]
[421483691,1777751438000,-250.0,0.00011015,2]
[421483684,1777751438000,-300.0,9.087e-05,2]
[421483741,1777751443000,-23.67433967,0.00013669,2]
[421483739,1777751443000,-819.51562325,8.558e-05,2]
[421483740,1777751443000,-3209.2257359,8.558e-05,2]
[421483851,1777752632000,-1200.0,0.00010382,2]
[421483849,1777752632000,-5000.0,0.00010279,2]
[421483853,1777752632000,-566.0,0.00010383,2]
[421483861,1777752632000,-951.49809548,0.0001092,2]
[421483857,1777752632000,-1402.193172,0.0001092,2]
[421483859,1777752632000,-689.7682936,0.0001092,2]
[421483855,1777752632000,-192.68833892,0.00010436,2]
[421484055,1777752638000,-300.0,0.00011026,2]
[421484066,1777752638000,-5000.0,0.00013273,2]
[421484059,1777752638000,-300.0,0.00011026,2]
[421484061,1777752638000,-600.0,0.00011246,2]
[421484068,1777752638000,-500.0,0.00013466,2]
[421484067,1777752638000,-5000.0,0.00013273,2]
[421484058,1777752638000,-300.0,0.00011026,2]
[421484057,1777752638000,-300.0,0.00011026,2]
[421484054,1777752638000,-300.0,0.00011026,2]
[421484048,1777752638000,-300.0,0.00011026,2]
[421484052,1777752638000,-300.0,0.00011026,2]
[421484045,1777752638000,-36.32510467,0.0001092,2]
[421484056,1777752638000,-300.0,0.00011026,2]
[421484049,1777752638000,-300.0,0.00011026,2]
[421484053,1777752638000,-300.0,0.00011026,2]
[421484051,1777752638000,-300.0,0.00011026,2]
[421484047,1777752638000,-300.0,0.00011026,2]
[421484046,1777752638000,-300.0,0.00011026,2]
[421484044,1777752638000,-274.50995763,0.0001092,2]
[421484042,1777752638000,-1317.61968752,0.0001092,2]
[421484043,1777752638000,-408.2591991,0.0001092,2]
[421484041,1777752638000,-3322.70358575,0.0001092,2]
[421484040,1777752638000,-9259.80131239,0.0001092,2]
[421484039,1777752638000,-1289.70641936,0.0001092,2]
[421484050,1777752638000,-300.0,0.00011026,2]
[421484064,1777752638000,-227.37223993,0.00012436,2]
[421484065,1777752638000,-160.0,0.00013078,2]
[421484062,1777752638000,-156.0,0.00011945,3]
[421484090,1777752638000,-1093.08316946,0.00013467,2]
[421484089,1777752638000,-1093.08316946,0.00013467,2]
[421484086,1777752638000,-191.61437261,0.00013467,2]
[421484087,1777752638000,-1093.08316946,0.00013467,2]
[421484060,1777752638000,-300.0,0.00011026,2]
[421484084,1777752638000,-500.0,0.00013466,2]
[421484091,1777752638000,-1031.84851536,0.00013467,2]
[421484083,1777752638000,-500.0,0.00013466,2]
[421484082,1777752638000,-500.0,0.00013466,2]
[421484085,1777752638000,-303.00245045,0.00013466,2]
[421484079,1777752638000,-503.21416963,0.00013466,2]
[421484088,1777752638000,-1093.08316946,0.00013467,2]
[421484077,1777752638000,-500.0,0.00013466,2]
[421484078,1777752638000,-211.98357433,0.00013466,2]
[421484063,1777752638000,-720.0,0.0001237,2]
[421484069,1777752638000,-500.0,0.00013466,2]
[421484072,1777752638000,-500.0,0.00013466,2]
[421484070,1777752638000,-500.0,0.00013466,2]
[421484071,1777752638000,-500.0,0.00013466,2]
[421484080,1777752638000,-221.9001347,0.00013466,2]
[421484073,1777752638000,-500.0,0.00013466,2]
[421484076,1777752638000,-500.0,0.00013466,2]
[421484081,1777752638000,-500.0,0.00013466,2]
[421484075,1777752638000,-500.0,0.00013466,2]
[421484074,1777752638000,-500.0,0.00013466,2]
[421484102,1777752640000,-1093.08316946,0.00013467,2]
[421484103,1777752640000,-1093.08316946,0.00013467,2]
[421484107,1777752640000,-1093.08316946,0.00013467,2]
[421484106,1777752640000,-1093.08316946,0.00013467,2]
[421484105,1777752640000,-1093.08316946,0.00013467,2]
[421484104,1777752640000,-1093.08316946,0.00013467,2]
[421484101,1777752640000,-61.2346541,0.00013467,2]
[421484108,1777752640000,-361.89632914,0.00013467,2]
[421484123,1777752643000,-731.18684032,0.00013467,2]
[421484127,1777752643000,-2666.08490056,0.00013467,2]
[421484125,1777752643000,-708.4864751,0.00013467,2]
[421484126,1777752643000,-1093.08316946,0.00013467,2]
[421484124,1777752643000,-384.59669436,0.00013467,2]
[421484134,1777752646000,-2875.66430212,0.00013467,2]
[421484133,1777752646000,-805.48,0.00013467,2]
[421484139,1777753800000,265.54382744,0.0002191,120]
[421484181,1777753838000,-233.1262967,0.00012378,2]
[421484183,1777753838000,-517.3262202,0.00012378,2]
[421484178,1777753838000,-600.0,0.00011762,2]
[421484185,1777753838000,-12105.9968253,0.00012378,2]
[421484187,1777753838000,-200.0,0.00012497,2]
[421484189,1777753838000,-200.0,0.00012652,2]
[421484179,1777753838000,-3756.6256499,0.00012378,2]
[421484188,1777753838000,-200.0,0.00012497,2]
[421484177,1777753838000,-300.0,0.00011532,2]
[421484170,1777753838000,-300.0,0.00011532,2]
[421484175,1777753838000,-300.0,0.00011532,2]
[421484172,1777753838000,-300.0,0.00011532,2]
[421484173,1777753838000,-300.0,0.00011532,2]
[421484174,1777753838000,-300.0,0.00011532,2]
[421484171,1777753838000,-300.0,0.00011532,2]
[421484166,1777753838000,-300.0,0.00011532,2]
[421484165,1777753838000,-300.0,0.00011532,2]
[421484168,1777753838000,-300.0,0.00011532,2]
[421484169,1777753838000,-300.0,0.00011532,2]
[421484176,1777753838000,-300.0,0.00011532,2]
[421484164,1777753838000,-300.0,0.00011532,2]
[421484161,1777753838000,-576.0,0.00011082,2]
[421484160,1777753838000,-4467.65454512,0.00011082,2]
[421484159,1777753838000,-523.60051223,0.00010971,2]
[421484162,1777753838000,-220.13310186,0.00011251,2]
[421484163,1777753838000,-300.0,0.00011532,2]
[421484180,1777753838000,-2397.8660703,0.00012378,2]
[421484182,1777753838000,-3304.6763936,0.00012378,2]
[421484167,1777753838000,-300.0,0.00011532,2]
[421484184,1777753838000,-306.1943993,0.00012378,2]
[421484190,1777753838000,-720.0,0.00012938,2]
[421484216,1777753838000,-599.09463363,0.00013543,2]
[421484212,1777753838000,-151.0,0.000134,2]
[421484207,1777753838000,-151.0,0.00013359,2]
[421484205,1777753838000,-151.0,0.00013359,2]
[421484215,1777753838000,-160.0,0.00013506,2]
[421484208,1777753838000,-151.0,0.00013359,2]
[421484204,1777753838000,-151.0,0.00013359,2]
[421484214,1777753838000,-151.0,0.000135,2]
[421484211,1777753838000,-151.0,0.000134,2]
[421484209,1777753838000,-151.0,0.00013359,2]
[421484210,1777753838000,-300.89714103,0.00013359,2]
[421484213,1777753838000,-500.0,0.00013467,2]
[421484206,1777753838000,-180.0,0.00013359,2]
[421484201,1777753838000,-151.0,0.00013359,2]
[421484186,1777753838000,-233.1262967,0.00012378,2]
[421484199,1777753838000,-15039.83178852,0.00013266,2]
[421484192,1777753838000,-160.0,0.00013196,2]
[421484191,1777753838000,-200.0,0.00013152,2]
[421484196,1777753838000,-259.75706019,0.00013251,2]
[421484203,1777753838000,-151.0,0.00013359,2]
[421484195,1777753838000,-9329.35295857,0.000132,2]
[421484197,1777753838000,-500.0,0.00013265,2]
[421484202,1777753838000,-151.0,0.00013359,2]
[421484200,1777753838000,-151.0,0.00013359,2]
[421484193,1777753838000,-3896.80101373,0.000132,2]
[421484194,1777753838000,-8411.41766271,0.000132,2]
[421484198,1777753838000,-501.13941915,0.00013265,2]
[421484247,1777753839000,-263.54,0.00013698,2]
[421484239,1777753839000,-238.16074865,0.00013697,2]
[421484243,1777753839000,-500.0,0.00013698,2]
[421484236,1777753839000,-151.0,0.00013669,2]
[421484240,1777753839000,-500.0,0.00013698,2]
[421484238,1777753839000,-155.001,0.00013697,2]
[421484254,1777753839000,-1911.49,0.00013698,2]
[421484244,1777753839000,-500.0,0.00013698,2]
[421484249,1777753839000,-1911.49,0.00013698,2]
[421484256,1777753839000,-634.47258448,0.00013698,2]
[421484250,1777753839000,-1911.49,0.00013698,2]
[421484242,1777753839000,-500.0,0.00013698,2]
[421484246,1777753839000,-500.0,0.00013698,2]
[421484237,1777753839000,-155.3714103,0.00013669,2]
[421484255,1777753839000,-1911.49,0.00013698,2]
[421484257,1777753839000,-1277.01741552,0.00013698,2]
[421484235,1777753839000,-151.0,0.00013669,2]
[421484221,1777753839000,-200.0,0.00013652,2]
[421484227,1777753839000,-1000.0,0.00013669,2]
[421484241,1777753839000,-500.0,0.00013698,2]
[421484217,1777753839000,-87.90536637,0.00013543,2]
[421484218,1777753839000,-265.0,0.00013589,3]
[421484220,1777753839000,-151.0,0.000136,2]
[421484219,1777753839000,-151.0,0.000136,2]
[421484222,1777753839000,-1000.0,0.00013669,2]
[421484224,1777753839000,-667.42656494,0.00013669,2]
[421484230,1777753839000,-180.91116202,0.00013669,2]
[421484223,1777753839000,-1000.0,0.00013669,2]
[421484233,1777753839000,-151.0,0.00013669,2]
[421484226,1777753839000,-1000.0,0.00013669,2]
[421484234,1777753839000,-151.0,0.00013669,2]
[421484232,1777753839000,-151.0,0.00013669,2]
[421484231,1777753839000,-151.0,0.00013669,2]
[421484228,1777753839000,-1000.0,0.00013669,2]
[421484229,1777753839000,-1009.03285186,0.00013669,2]
[421484225,1777753839000,-1000.0,0.00013669,2]
[421484245,1777753839000,-500.0,0.00013698,2]
[421484258,1777753839000,-1911.49,0.00013698,2]
[421484253,1777753839000,-1911.49,0.00013698,2]
[421484283,1777753839000,-869.97,0.00013698,2]
[421484277,1777753839000,-869.97,0.00013698,2]
[421484282,1777753839000,-869.97,0.00013698,2]
[421484279,1777753839000,-869.97,0.00013698,2]
[421484278,1777753839000,-869.97,0.00013698,2]
[421484272,1777753839000,-1911.5233798,0.00013698,2]
[421484281,1777753839000,-869.97,0.00013698,2]
[421484276,1777753839000,-869.97,0.00013698,2]
[421484284,1777753839000,-869.97,0.00013698,2]
[421484288,1777753839000,-869.97,0.00013698,2]
[421484287,1777753839000,-869.97,0.00013698,2]
[421484289,1777753839000,-869.97,0.00013698,2]
[421484290,1777753839000,-869.97,0.00013698,2]
[421484292,1777753839000,-869.97,0.00013698,2]
[421484285,1777753839000,-869.97,0.00013698,2]
[421484252,1777753839000,-1911.49,0.00013698,2]
[421484286,1777753839000,-869.97,0.00013698,2]
[421484274,1777753839000,-869.97,0.00013698,2]
[421484291,1777753839000,-869.97,0.00013698,2]
[421484280,1777753839000,-869.97,0.00013698,2]
[421484275,1777753839000,-869.97,0.00013698,2]
[421484267,1777753839000,-1911.49,0.00013698,2]
[421484262,1777753839000,-1911.49,0.00013698,2]
[421484263,1777753839000,-1911.49,0.00013698,2]
[421484259,1777753839000,-1911.49,0.00013698,2]
[421484268,1777753839000,-1911.49,0.00013698,2]
[421484271,1777753839000,-1911.49,0.00013698,2]
[421484248,1777753839000,-1911.49,0.00013698,2]
[421484266,1777753839000,-1911.49,0.00013698,2]
[421484273,1777753839000,-869.97,0.00013698,2]
[421484261,1777753839000,-1911.49,0.00013698,2]
[421484265,1777753839000,-1911.49,0.00013698,2]
[421484251,1777753839000,-1911.49,0.00013698,2]
[421484260,1777753839000,-1911.49,0.00013698,2]
[421484264,1777753839000,-1911.49,0.00013698,2]
[421484270,1777753839000,-1911.49,0.00013698,2]
[421484269,1777753839000,-1911.49,0.00013698,2]
[421484331,1777753840000,-767.42,0.00013698,2]
[421484350,1777753840000,-500.0,0.00013698,2]
[421484343,1777753840000,-500.0,0.00013698,2]
[421484347,1777753840000,-500.0,0.00013698,2]
[421484334,1777753840000,-767.42,0.00013698,2]
[421484336,1777753840000,-767.42,0.00013698,2]
[421484335,1777753840000,-767.42,0.00013698,2]
[421484329,1777753840000,-767.42,0.00013698,2]
[421484338,1777753840000,-767.56446523,0.00013698,2]
[421484333,1777753840000,-767.42,0.00013698,2]
[421484330,1777753840000,-767.42,0.00013698,2]
[421484328,1777753840000,-767.42,0.00013698,2]
[421484342,1777753840000,-500.0,0.00013698,2]
[421484332,1777753840000,-767.42,0.00013698,2]
[421484326,1777753840000,-767.42,0.00013698,2]
[421484346,1777753840000,-500.0,0.00013698,2]
[421484363,1777753840000,-580.69,0.00013698,2]
[421484344,1777753840000,-500.0,0.00013698,2]
[421484352,1777753840000,-366.95546232,0.00013698,2]
[421484351,1777753840000,-500.0,0.00013698,2]
[421484341,1777753840000,-500.0,0.00013698,2]
[421484345,1777753840000,-500.0,0.00013698,2]
[421484353,1777753840000,-500.0,0.00013698,2]
[421484349,1777753840000,-500.0,0.00013698,2]
[421484356,1777753840000,-580.69,0.00013698,2]
[421484360,1777753840000,-580.69,0.00013698,2]
[421484364,1777753840000,-580.69,0.00013698,2]
[421484361,1777753840000,-580.69,0.00013698,2]
[421484366,1777753840000,-580.69,0.00013698,2]
[421484339,1777753840000,-500.0,0.00013698,2]
[421484348,1777753840000,-500.0,0.00013698,2]
[421484337,1777753840000,-767.42,0.00013698,2]
[421484308,1777753840000,-151.0,0.00013698,2]
[421484322,1777753840000,-767.42,0.00013698,2]
[421484293,1777753840000,-869.97,0.00013698,2]
[421484294,1777753840000,-869.97,0.00013698,2]
[421484297,1777753840000,-500.0,0.00013698,2]
[421484295,1777753840000,-869.97,0.00013698,2]
[421484296,1777753840000,-870.05460262,0.00013698,2]
[421484299,1777753840000,-500.0,0.00013698,2]
[421484309,1777753840000,-151.0,0.00013698,2]
[421484298,1777753840000,-500.0,0.00013698,2]
[421484305,1777753840000,-500.0,0.00013698,2]
[421484310,1777753840000,-151.0,0.00013698,2]
[421484303,1777753840000,-500.0,0.00013698,2]
[421484311,1777753840000,-151.0,0.00013698,2]
[421484300,1777753840000,-500.0,0.00013698,2]
[421484304,1777753840000,-500.0,0.00013698,2]
[421484302,1777753840000,-500.0,0.00013698,2]
[421484301,1777753840000,-500.0,0.00013698,2]
[421484306,1777753840000,-500.0,0.00013698,2]
[421484314,1777753840000,-323.83,0.00013698,2]
[421484315,1777753840000,-767.42,0.00013698,2]
[421484324,1777753840000,-767.42,0.00013698,2]
[421484313,1777753840000,-500.0,0.00013698,2]
[421484319,1777753840000,-767.42,0.00013698,2]
[421484320,1777753840000,-767.42,0.00013698,2]
[421484327,1777753840000,-767.42,0.00013698,2]
[421484325,1777753840000,-767.42,0.00013698,2]
[421484312,1777753840000,-500.0,0.00013698,2]
[421484316,1777753840000,-767.42,0.00013698,2]
[421484323,1777753840000,-767.42,0.00013698,2]
[421484317,1777753840000,-767.42,0.00013698,2]
[421484318,1777753840000,-767.42,0.00013698,2]
[421484307,1777753840000,-498.08040277,0.00013698,2]
[421484321,1777753840000,-767.42,0.00013698,2]
[421484365,1777753840000,-580.69,0.00013698,2]
[421484340,1777753840000,-500.0,0.00013698,2]
[421484355,1777753840000,-580.69,0.00013698,2]
[421484400,1777753840000,-2150.738,0.0001415,2]
[421484399,1777753840000,-151.0,0.0001415,2]
[421484402,1777753840000,-151.0,0.000142,2]
[421484403,1777753840000,-151.0,0.000142,2]
[421484406,1777753840000,-578.20924308,0.0001426,2]
[421484409,1777753840000,-599.60298507,0.00014315,2]
[421484405,1777753840000,-864.0,0.00014232,2]
[421484398,1777753840000,-537.6845,0.0001415,2]
[421484408,1777753840000,-151.0,0.000143,2]
[421484404,1777753840000,-557.5788265,0.00014205,2]
[421484411,1777753840000,-644.79446246,0.00014425,2]
[421484422,1777753840000,-154.0,0.00014674,2]
[421484423,1777753840000,-166.0,0.00014674,2]
[421484421,1777753840000,-172.0,0.00014674,2]
[421484413,1777753840000,-151.0,0.000145,2]
[421484410,1777753840000,-621.78829552,0.0001437,2]
[421484419,1777753840000,-200.0,0.00014652,2]
[421484430,1777753840000,-154.0,0.00014674,2]
[421484429,1777753840000,-154.0,0.00014674,2]
[421484427,1777753840000,-166.0,0.00014674,2]
[421484428,1777753840000,-154.0,0.00014674,2]
[421484424,1777753840000,-154.0,0.00014674,2]
[421484426,1777753840000,-154.0,0.00014674,2]
[421484401,1777753840000,-200.0,0.00014152,2]
[421484425,1777753840000,-166.0,0.00014674,2]
[421484415,1777753840000,-151.0,0.000145,2]
[421484416,1777753840000,-693.3919763,0.00014535,2]
[421484412,1777753840000,-668.65185757,0.0001448,2]
[421484414,1777753840000,-151.0,0.000145,2]
[421484417,1777753840000,-719.04747942,0.0001459,2]
[421484418,1777753840000,-745.65223616,0.00014645,2]
[421484420,1777753840000,-154.0,0.00014674,2]
[421484397,1777753840000,-537.6845,0.0001415,2]
[421484354,1777753840000,-500.0,0.00013698,2]
[421484391,1777753840000,-740.0,0.00014021,2]
[421484384,1777753840000,-151.0,0.000139,2]
[421484358,1777753840000,-580.69,0.00013698,2]
[421484367,1777753840000,-580.69,0.00013698,2]
[421484362,1777753840000,-580.69,0.00013698,2]
[421484359,1777753840000,-580.69,0.00013698,2]
[421484357,1777753840000,-580.69,0.00013698,2]
[421484369,1777753840000,-580.69,0.00013698,2]
[421484381,1777753840000,-151.0,0.000137,2]
[421484380,1777753840000,-1000.0,0.00013699,2]
[421484368,1777753840000,-580.69,0.00013698,2]
[421484370,1777753840000,-580.69,0.00013698,2]
[421484371,1777753840000,-580.69,0.00013698,2]
[421484372,1777753840000,-580.69,0.00013698,2]
[421484374,1777753840000,-580.69,0.00013698,2]
[421484373,1777753840000,-580.69,0.00013698,2]
[421484379,1777753840000,-1000.0,0.00013699,2]
[421484375,1777753840000,-580.69,0.00013698,2]
[421484377,1777753840000,-580.69,0.00013698,2]
[421484385,1777753840000,-160.38090074,0.00014,2]
[421484393,1777753840000,-185.0,0.00014021,2]
[421484395,1777753840000,-461.67526834,0.0001415,2]
[421484383,1777753840000,-151.0,0.000139,2]
[421484382,1777753840000,-822.0,0.00013811,2]
[421484389,1777753840000,-646.0,0.00014021,2]
[421484386,1777753840000,-151.0,0.00014,2]
[421484390,1777753840000,-2213.0,0.00014021,2]
[421484394,1777753840000,-442.0,0.00014021,2]
[421484387,1777753840000,-185.21084172,0.00014021,2]
[421484376,1777753840000,-580.69,0.00013698,2]
[421484378,1777753840000,-580.70375248,0.00013698,2]
[421484396,1777753840000,-232.34705367,0.0001415,2]
[421484388,1777753840000,-1410.0,0.00014021,2]
[421484446,1777753841000,-801.85129955,0.00014755,2]
[421484453,1777753841000,-217.59763373,0.000149,2]
[421484445,1777753841000,-151.0,0.000147,2]
[421484452,1777753841000,-217.59763373,0.000149,2]
[421484462,1777753841000,-151.0,0.00015,2]
[421484451,1777753841000,-862.28603014,0.00014865,2]
[421484456,1777753841000,-151.0,0.00014975,2]
[421484463,1777753841000,-151.0,0.00015,2]
[421484457,1777753841000,-10145.03252764,0.00015,2]
[421484458,1777753841000,-2000.0,0.00015,2]
[421484459,1777753841000,-151.0,0.00015,2]
[421484460,1777753841000,-151.0,0.00015,2]
[421484443,1777753841000,-773.2413689,0.000147,2]
[421484455,1777753841000,-927.27566595,0.00014975,2]
[421484444,1777753841000,-151.0,0.000147,2]
[421484435,1777753841000,-649.0,0.00014674,2]
[421484448,1777753841000,-791.0,0.000148,2]
[421484442,1777753841000,-2230.315306,0.00014698,2]
[421484441,1777753841000,-477.26543042,0.00014698,2]
[421484439,1777753841000,-649.0,0.00014674,2]
[421484450,1777753841000,-172.1525,0.00014814,2]
[421484449,1777753841000,-831.51979763,0.0001481,2]
[421484440,1777753841000,-649.0,0.00014674,2]
[421484438,1777753841000,-649.0,0.00014674,2]
[421484431,1777753841000,-154.0,0.00014674,2]
[421484434,1777753841000,-649.0,0.00014674,2]
[421484432,1777753841000,-180.28211632,0.00014674,2]
[421484436,1777753841000,-649.0,0.00014674,2]
[421484437,1777753841000,-649.0,0.00014674,2]
[421484461,1777753841000,-151.0,0.00015,2]
[421484447,1777753841000,-151.0,0.000148,2]
[421484466,1777753841000,-961.58486559,0.0001503,2]
[421484433,1777753841000,-649.0,0.00014674,2]
[421484464,1777753841000,-151.0,0.00015,2]
[421484488,1777753841000,-151.0,0.000156,2]
[421484487,1777753841000,-151.0,0.000156,2]
[421484490,1777753841000,-176.097836,0.000156,2]
[421484489,1777753841000,-151.0,0.000156,2]
[421484485,1777753841000,-151.0,0.000156,2]
[421484486,1777753841000,-151.0,0.000156,2]
[421484483,1777753841000,-10145.03252764,0.000156,2]
[421484492,1777753841000,-1000.0,0.00015655,2]
[421484494,1777753841000,-160.0,0.00015778,2]
[421484493,1777753841000,-2820.023877,0.0001568,2]
[421484495,1777753841000,-2012.651706,0.00015778,2]
[421484496,1777753841000,-2302.68212433,0.00015778,2]
[421484497,1777753841000,-325.80027339,0.00015778,2]
[421484467,1777753841000,-171.813094,0.00015068,2]
[421484491,1777753841000,-151.28496,0.000156,2]
[421484481,1777753841000,-156.587,0.00015519,2]
[421484454,1777753841000,-894.19061326,0.0001492,2]
[421484484,1777753841000,-151.0,0.000156,2]
[421484468,1777753841000,-997.16350561,0.00015085,2]
[421484469,1777753841000,-200.0,0.000151,2]
[421484465,1777753841000,-151.0,0.00015,2]
[421484475,1777753841000,-151.0,0.000153,2]
[421484476,1777753841000,-151.0,0.000153,2]
[421484470,1777753841000,-503.45724914,0.00015159,5]
[421484473,1777753841000,-299.38101852,0.00015251,2]
[421484479,1777753841000,-10145.03252764,0.000155,2]
[421484472,1777753841000,-2312.83697232,0.00015246,2]
[421484480,1777753841000,-1000.0,0.000155,2]
[421484478,1777753841000,-10250.03989236,0.00015495,2]
[421484482,1777753841000,-4710.0,0.00015528,3]
[421484471,1777753841000,-10145.03252764,0.000152,2]
[421484474,1777753841000,-10145.03252764,0.000153,2]
[421484477,1777753841000,-151.0,0.000153,2]
[421484708,1777753856000,-2398.4119403,0.00015794,2]
[421484710,1777753856000,-8303.24495509,0.000158,2]
[421484706,1777753856000,-245.208075,0.00015778,7]
[421484704,1777753856000,-1236.82101428,0.00015778,2]
[421484700,1777753856000,-618.07140816,0.0001,2]
[421484702,1777753856000,-160.0,0.0001466,2]
[421484685,1777753856000,-2211.88561734,0.0001,2]
[421484713,1777753856000,-1365.08688612,0.000158,2]
[421487503,1777753879000,265.54382744,0.000219,120]
[421487933,1777753883000,265.54382744,0.000219,120]
[421488544,1777753888000,265.54382744,0.000218,120]
[421488500,1777753888000,265.54382744,0.000218,120]
[421488898,1777753891000,265.54382744,0.000218,120]
[421497627,1777754960000,-1000.0,0.0001699,30]
[421497662,1777755032000,-160.0,0.00013029,2]
[421497663,1777755032000,-160.0,0.00013029,2]
[421497658,1777755032000,-300.0,0.00010199,2]
[421497659,1777755032000,-300.0,0.00010199,2]
[421497657,1777755032000,-300.0,0.00010199,2]
[421497655,1777755032000,-300.0,0.00010199,2]
[421497653,1777755032000,-300.0,0.00010199,2]
[421497656,1777755032000,-300.0,0.00010199,2]
[421497654,1777755032000,-300.0,0.00010199,2]
[421497643,1777755032000,-560.0,9.999e-05,2]
[421497649,1777755032000,-300.0,0.00010199,2]
[421497651,1777755032000,-300.0,0.00010199,2]
[421497650,1777755032000,-300.0,0.00010199,2]
[421497648,1777755032000,-300.0,0.00010199,2]
[421497647,1777755032000,-206.99369548,0.0001,2]
[421497646,1777755032000,-5497.72452023,0.0001,2]
[421497644,1777755032000,-221.22912135,9.999e-05,2]
[421497645,1777755032000,-292.10557715,0.0001,2]
[421497641,1777755032000,-300.0,9.999e-05,2]
[421497652,1777755032000,-300.0,0.00010199,2]
[421497642,1777755032000,-737.0,9.999e-05,2]
[421497661,1777755032000,-261.0503632,0.00011999,2]
[421497660,1777755032000,-300.0,0.00010199,2]
[421497664,1777755032000,-160.0,0.00013029,2]